[Event "MČR juniorů a juniorek v rapid šachu 2023"]
[Site "Czech Republic"]
[Date "2023.09.23"]
[Round "2.1"]
[White "Jun, Rudolf"]
[Black "Pavlis, Matej"]
[Result "1/2-1/2"]
[TimeControl "20 min + 5 sec per move"]
[WhiteFideId "376612"]
[BlackFideId "23735767"]
[WhiteElo "2151"]
[BlackElo "1771"]

1. e4 {[%clk 00:20:07]} {[%emt 00:00:02]} c5 {[%clk 00:20:01]} {[%emt
00:00:10]} 2. Nf3 {[%clk 00:20:09]} {[%emt 00:00:03]} d6 {[%clk 00:20:02]}
{[%emt 00:00:04]} 3. Bb5+ {[%clk 00:20:11]} {[%emt 00:00:02]} Bd7 {[%clk
00:20:06]} {[%emt 00:00:02]} 4. Bxd7+ {[%clk 00:20:14]} {[%emt 00:00:02]} Nxd7
{[%clk 00:20:09]} {[%emt 00:00:02]} 5. O-O {[%clk 00:20:16]} {[%emt 00:00:02]}
Ngf6 {[%clk 00:20:13]} {[%emt 00:00:03]} 6. Re1 {[%clk 00:20:16]} {[%emt
00:00:05]} Qc7 {[%clk 00:20:13]} {[%emt 00:00:05]} 7. c4 {[%clk 00:20:18]}
{[%emt 00:00:04]} g6 {[%clk 00:20:12]} {[%emt 00:00:05]} 8. Nc3 {[%clk
00:20:09]} {[%emt 00:00:14]} Bg7 {[%clk 00:20:03]} {[%emt 00:00:15]} 9. b3
{[%clk 00:19:57]} {[%emt 00:00:17]} a6 {[%clk 00:19:51]} {[%emt 00:00:17]} 10.
Bb2 {[%clk 00:19:55]} {[%emt 00:00:07]} O-O {[%clk 00:19:53]} {[%emt 00:00:03]}
11. d4 {[%clk 00:18:42]} {[%emt 00:01:18]} cxd4 {[%clk 00:15:04]} {[%emt
00:04:55]} 12. Nxd4 {[%clk 00:18:17]} {[%emt 00:00:30]} e6 {[%clk 00:13:47]}
{[%emt 00:01:21]} 13. Qd2 {[%clk 00:18:05]} {[%emt 00:00:17]} Rad8 {[%clk
00:13:04]} {[%emt 00:00:48]} 14. Rac1 {[%clk 00:15:17]} {[%emt 00:02:53]} Rfe8
{[%clk 00:12:45]} {[%emt 00:00:24]} 15. a4 {[%clk 00:11:05]} {[%emt 00:04:17]}
Qb6 {[%clk 00:10:13]} {[%emt 00:02:37]} 16. Nb1 {[%clk 00:03:50]} {[%emt
00:07:20]} e5 {[%clk 00:09:36]} {[%emt 00:00:42]} 17. a5 {[%clk 00:03:34]}
{[%emt 00:00:22]} Qc7 {[%clk 00:09:39]} {[%emt 00:00:02]} 18. Nf3 {[%clk
00:01:20]} {[%emt 00:02:19]} Nc5 {[%clk 00:09:24]} {[%emt 00:00:19]} 19. Qc2
{[%clk 00:01:20]} {[%emt 00:00:05]} Qxa5 {[%clk 00:08:44]} {[%emt 00:00:46]} 20.
Bc3 {[%clk 00:00:27]} {[%emt 00:00:57]} Qc7 {[%clk 00:08:40]} {[%emt 00:00:09]}
21. Rcd1 {[%clk 00:00:09]} {[%emt 00:00:23]} Qc6 {[%clk 00:07:34]} {[%emt
00:01:11]} 22. Nbd2 {[%clk 00:00:08]} {[%emt 00:00:06]} Ne6 {[%clk 00:07:12]}
{[%emt 00:00:27]} 23. b4 {[%clk 00:00:10]} {[%emt 00:00:04]} b6 {[%clk
00:03:31]} {[%emt 00:03:45]} 24. Qb3 {[%clk 00:00:11]} {[%emt 00:00:03]} Nd7
{[%clk 00:02:06]} {[%emt 00:01:30]} 25. Bb2 {[%clk 00:00:12]} {[%emt 00:00:05]}
a5 {[%clk 00:01:57]} {[%emt 00:00:14]} 26. bxa5 {[%clk 00:00:14]} {[%emt
00:00:03]} bxa5 {[%clk 00:01:58]} {[%emt 00:00:04]} 27. Ba3 {[%clk 00:00:07]}
{[%emt 00:00:12]} Ndc5 {[%clk 00:02:01]} {[%emt 00:00:02]} 28. Qb5 {[%clk
00:00:11]} Qc7 {[%clk 00:01:29]} {[%emt 00:00:36]} 29. Qb1 {[%clk 00:00:15]}
{[%emt 00:00:01]} Rb8 {[%clk 00:01:30]} {[%emt 00:00:05]} 30. Qc2 {[%clk
00:00:19]} a4 {[%clk 00:01:32]} {[%emt 00:00:03]} 31. Rb1 {[%clk 00:00:22]}
{[%emt 00:00:02]} Bh6 {[%clk 00:01:05]} {[%emt 00:00:32]} 32. Rb5 {[%clk
00:00:18]} {[%emt 00:00:08]} Bxd2 {[%clk 00:01:06]} {[%emt 00:00:04]} 33. Qxd2
{[%clk 00:00:18]} {[%emt 00:00:06]} Rxb5 {[%clk 00:00:50]} {[%emt 00:00:20]} 34.
cxb5 {[%clk 00:00:22]} Qb6 {[%clk 00:00:34]} {[%emt 00:00:21]} 35. Qe2 {[%clk
00:00:16]} {[%emt 00:00:11]} Nf4 {[%clk 00:00:35]} {[%emt 00:00:05]} 36. Qe3
{[%clk 00:00:08]} {[%emt 00:00:13]} Qxb5 {[%clk 00:00:32]} {[%emt 00:00:08]} 37.
g3 {[%clk 00:00:12]} {[%emt 00:00:01]} Nfe6 {[%clk 00:00:35]} {[%emt 00:00:02]}
38. Rd1 {[%clk 00:00:15]} {[%emt 00:00:01]} Rd8 {[%clk 00:00:21]} {[%emt
00:00:18]} 39. Qc1 {[%clk 00:00:07]} {[%emt 00:00:13]} Qb3 {[%clk 00:00:11]}
{[%emt 00:00:17]} 40. Bxc5 {[%clk 00:00:08]} {[%emt 00:00:04]} Nxc5 {[%clk
00:00:10]} {[%emt 00:00:06]} 41. Nxe5 {[%clk 00:00:11]} {[%emt 00:00:02]} Nxe4
{[%clk 00:00:07]} {[%emt 00:00:07]} 42. Nc6 {[%clk 00:00:13]} {[%emt 00:00:03]}
Rd7 {[%clk 00:00:07]} {[%emt 00:00:06]} 43. Re1 {[%clk 00:00:17]} {[%emt
00:00:01]} Nf6 {[%clk 00:00:10]} {[%emt 00:00:02]} 44. Qf4 {[%clk 00:00:19]}
{[%emt 00:00:02]} Kg7 {[%clk 00:00:13]} {[%emt 00:00:02]} 45. Nd4 {[%clk
00:00:18]} {[%emt 00:00:07]} Qd5 {[%clk 00:00:14]} {[%emt 00:00:04]} 46. Nc2
{[%clk 00:00:09]} {[%emt 00:00:14]} Ra7 {[%clk 00:00:14]} {[%emt 00:00:05]} 47.
Ra1 {[%clk 00:00:07]} {[%emt 00:00:07]} Qe5 {[%clk 00:00:17]} {[%emt 00:00:02]}
48. Rxa4 {[%clk 00:00:07]} {[%emt 00:00:04]} Rxa4 {[%emt 00:00:05]} 49. Qxa4
{[%clk 00:00:11]} Qc3 {[%clk 00:00:21]} {[%emt 00:00:02]} 50. Ne3 {[%clk
00:00:08]} {[%emt 00:00:08]} d5 {[%clk 00:00:25]} 51. Qc2 {[%clk 00:00:07]}
{[%emt 00:00:06]} d4 {[%clk 00:00:26]} {[%emt 00:00:04]} 52. Qxc3 {[%clk
00:00:09]} {[%emt 00:00:03]} dxc3 {[%clk 00:00:30]} 53. Kf1 {[%clk 00:00:13]}
Ne4 {[%clk 00:00:28]} {[%emt 00:00:07]} 54. Ke2 {[%clk 00:00:16]} {[%emt
00:00:03]} Kf6 {[%clk 00:00:31]} {[%emt 00:00:02]} 55. f3 {[%clk 00:00:18]}
{[%emt 00:00:02]} Ng5 {[%clk 00:00:33]} {[%emt 00:00:02]} 56. Nd5+ {[%clk
00:00:23]} {[%emt 00:00:02]} Ke5 {[%clk 00:00:37]} 57. Nxc3 {[%clk 00:00:27]}
Kd4 {[%clk 00:00:39]} {[%emt 00:00:02]} 58. Nd1 {[%clk 00:00:28]} {[%emt
00:00:04]} f5 {[%clk 00:00:37]} {[%emt 00:00:08]} 59. Ne3 {[%clk 00:00:32]} Ne6
{[%clk 00:00:36]} {[%emt 00:00:06]} 60. Kf2 {[%clk 00:00:13]} {[%emt 00:00:23]}
Kd3 {[%clk 00:00:37]} {[%emt 00:00:04]} 61. Nd5 {[%clk 00:00:16]} {[%emt
00:00:02]} h6 {[%clk 00:00:25]} {[%emt 00:00:17]} 62. Ne7 {[%clk 00:00:19]}
{[%emt 00:00:03]} Nf8 {[%clk 00:00:22]} {[%emt 00:00:08]} 63. Nc6 {[%clk
00:00:18]} {[%emt 00:00:05]} Kc4 {[%clk 00:00:18]} {[%emt 00:00:10]} 64. Ne5+
{[%clk 00:00:13]} {[%emt 00:00:10]} Kd5 {[%clk 00:00:23]} 65. Nf7 {[%clk
00:00:16]} {[%emt 00:00:01]} h5 {[%clk 00:00:26]} {[%emt 00:00:02]} 66. Ng5
{[%clk 00:00:17]} {[%emt 00:00:04]} Kd4 {[%clk 00:00:21]} {[%emt 00:00:09]} 67.
f4 {[%clk 00:00:11]} {[%emt 00:00:11]} Kd3 {[%clk 00:00:20]} {[%emt 00:00:06]}
68. Kf3 {[%clk 00:00:14]} {[%emt 00:00:03]} Kd4 {[%clk 00:00:14]} {[%emt
00:00:09]} 69. Nf7 {[%clk 00:00:18]} {[%emt 00:00:02]} Kd5 {[%clk 00:00:12]}
{[%emt 00:00:08]} 70. Ke3 {[%clk 00:00:21]} {[%emt 00:00:01]} Ke6 {[%clk
00:00:13]} {[%emt 00:00:04]} 71. Ng5+ {[%clk 00:00:15]} {[%emt 00:00:11]} Kd5
{[%clk 00:00:17]} {[%emt 00:00:01]} 72. Nf7 {[%clk 00:00:18]} {[%emt 00:00:02]}
Ke6 {[%clk 00:00:22]} 73. Ng5+ {[%clk 00:00:22]} Kd5 {[%clk 00:00:26]} 74. Nf3
{[%clk 00:00:27]} Ne6 {[%clk 00:00:23]} {[%emt 00:00:07]} 75. Ne5 {[%clk
00:00:29]} {[%emt 00:00:04]} Nf8 {[%clk 00:00:27]} 76. Nd3 {[%clk 00:00:23]}
{[%emt 00:00:10]} Ne6 {[%clk 00:00:25]} {[%emt 00:00:08]} 77. Nb4+ {[%clk
00:00:23]} {[%emt 00:00:04]} Kc5 {[%clk 00:00:21]} {[%emt 00:00:09]} 78. Nd3+
{[%clk 00:00:20]} {[%emt 00:00:08]} Kd5 {[%clk 00:00:26]} 79. h3 {[%clk
00:00:24]} Nf8 {[%clk 00:00:11]} {[%emt 00:00:20]} 80. Nb4+ {[%clk 00:00:23]}
{[%emt 00:00:07]} Kc5 {[%clk 00:00:12]} {[%emt 00:00:03]} 81. Nd3+ {[%clk
00:00:27]} Kd5 {[%clk 00:00:16]} {[%emt 00:00:03]} 82. Ne5 {[%clk 00:00:25]}
{[%emt 00:00:05]} Kc5 {[%clk 00:00:18]} {[%emt 00:00:03]} 83. Nf3 {[%clk
00:00:19]} {[%emt 00:00:12]} Kd5 {[%clk 00:00:19]} {[%emt 00:00:05]} 84. Kd3
{[%clk 00:00:18]} {[%emt 00:00:05]} Nd7 {[%clk 00:00:17]} {[%emt 00:00:08]} 85.
Nh4 {[%clk 00:00:14]} {[%emt 00:00:09]} Nf8 {[%clk 00:00:20]} {[%emt 00:00:01]}
86. Ng2 {[%clk 00:00:17]} {[%emt 00:00:01]} Ne6 {[%clk 00:00:12]} {[%emt
00:00:14]} 87. Ne3+ {[%clk 00:00:12]} {[%emt 00:00:10]} Kc5 {[%clk 00:00:14]}
{[%emt 00:00:02]} 88. Nc4 {[%clk 00:00:14]} {[%emt 00:00:04]} Kd5 {[%clk
00:00:15]} {[%emt 00:00:04]} 89. Ne5 {[%clk 00:00:12]} {[%emt 00:00:07]} Nf8
{[%clk 00:00:19]} 90. h4 {[%clk 00:00:08]} {[%emt 00:00:09]} Kc5 {[%clk
00:00:22]} {[%emt 00:00:02]} 91. Ke3 {[%clk 00:00:11]} {[%emt 00:00:03]}
1/2-1/2

[Event "MČR juniorů a juniorek v rapid šachu 2023"]
[Site "Czech Republic"]
[Date "2023.09.23"]
[Round "2.2"]
[White "Nagyova, Daniela"]
[Black "Nagy, Ladislav"]
[Result "1/2-1/2"]
[TimeControl "20 min + 5 sec per move"]
[WhiteFideId "390070"]
[BlackFideId "374300"]
[WhiteElo "1762"]
[BlackElo "2089"]

1. e4 {[%clk 00:20:03]} {[%emt 00:00:06]} c5 {[%clk 00:20:07]} {[%emt
00:00:03]} 2. Nf3 {[%clk 00:20:03]} {[%emt 00:00:05]} Nc6 {[%clk 00:20:09]}
{[%emt 00:00:04]} 3. Nc3 {[%clk 00:20:01]} {[%emt 00:00:06]} e6 {[%clk
00:19:58]} {[%emt 00:00:17]} 4. d4 {[%clk 00:19:56]} {[%emt 00:00:09]} cxd4
{[%clk 00:20:01]} {[%emt 00:00:03]} 5. Nxd4 {[%clk 00:19:59]} {[%emt 00:00:02]}
Qc7 {[%clk 00:20:00]} {[%emt 00:00:06]} 6. Ndb5 {[%clk 00:18:46]} {[%emt
00:01:17]} Qb8 {[%clk 00:19:34]} {[%emt 00:00:31]} 7. f4 {[%clk 00:17:20]}
{[%emt 00:01:31]} a6 {[%clk 00:17:52]} {[%emt 00:01:48]} 8. Nd4 {[%clk
00:17:17]} {[%emt 00:00:07]} d6 {[%clk 00:16:01]} {[%emt 00:01:56]} 9. Be3
{[%clk 00:16:57]} {[%emt 00:00:25]} Nf6 {[%clk 00:15:35]} {[%emt 00:00:31]} 10.
g4 {[%clk 00:16:04]} {[%emt 00:00:58]} Nxd4 {[%clk 00:13:39]} {[%emt 00:02:02]}
11. g5 {[%clk 00:14:52]} {[%emt 00:01:17]} Nc6 {[%clk 00:12:33]} {[%emt
00:01:11]} 12. gxf6 {[%clk 00:14:51]} {[%emt 00:00:06]} gxf6 {[%clk 00:12:37]}
{[%emt 00:00:01]} 13. Bb6 {[%clk 00:13:37]} {[%emt 00:01:18]} Be7 {[%clk
00:06:09]} {[%emt 00:06:33]} 14. Qg4 {[%clk 00:11:48]} {[%emt 00:01:54]} Rf8
{[%clk 00:05:22]} {[%emt 00:00:53]} 15. O-O-O {[%clk 00:09:31]} {[%emt
00:02:21]} Bd7 {[%clk 00:04:45]} {[%emt 00:00:42]} 16. Qh3 {[%clk 00:06:23]}
{[%emt 00:03:13]} Na7 {[%clk 00:02:36]} {[%emt 00:02:15]} 17. f5 {[%clk
00:04:08]} {[%emt 00:02:19]} Nb5 {[%emt 00:01:08]} 18. Bc4 {[%clk 00:02:29]}
{[%emt 00:01:33]} Nxc3 {[%clk 00:01:17]} {[%emt 00:00:32]} 19. bxc3 {[%clk
00:02:10]} {[%emt 00:00:24]} Qc8 {[%clk 00:00:56]} {[%emt 00:00:26]} 20. Bb3
{[%clk 00:01:52]} {[%emt 00:00:23]} a5 {[%clk 00:00:33]} {[%emt 00:00:28]} 21.
a4 {[%clk 00:01:15]} {[%emt 00:00:43]} Qc6 {[%clk 00:00:36]} {[%emt 00:00:02]}
22. Qe3 {[%clk 00:00:58]} {[%emt 00:00:22]} Ra6 {[%clk 00:00:29]} {[%emt
00:00:12]} 23. Ba7 {[%clk 00:00:38]} {[%emt 00:00:25]} b5 {[%clk 00:00:29]}
{[%emt 00:00:05]} 24. Bd5 {[%clk 00:00:20]} {[%emt 00:00:23]} exd5 {[%clk
00:00:22]} {[%emt 00:00:12]} 1/2-1/2

[Event "MČR juniorů a juniorek v rapid šachu 2023"]
[Site "Czech Republic"]
[Date "2023.09.23"]
[Round "2.3"]
[White "Prazak, Daniel"]
[Black "Rybackova, Lucie"]
[Result "1-0"]
[TimeControl "20 min + 5 sec per move"]
[WhiteFideId "23709456"]
[BlackFideId "23739207"]
[WhiteElo "2029"]
[BlackElo "1768"]

1. c4 {[%clk 00:19:43]} {[%emt 00:00:25]} c5 {[%clk 00:19:47]} {[%emt
00:00:24]} 2. g3 {[%clk 00:19:29]} {[%emt 00:00:20]} Nc6 {[%clk 00:19:34]}
{[%emt 00:00:17]} 3. Bg2 {[%clk 00:19:30]} {[%emt 00:00:04]} g6 {[%clk
00:19:29]} {[%emt 00:00:10]} 4. Nc3 {[%clk 00:19:02]} {[%emt 00:00:33]} Bg7
{[%clk 00:19:18]} {[%emt 00:00:16]} 5. Nf3 {[%clk 00:18:46]} {[%emt 00:00:21]}
Nf6 {[%clk 00:18:36]} {[%emt 00:00:46]} 6. O-O {[%clk 00:18:48]} {[%emt
00:00:03]} O-O {[%clk 00:18:39]} {[%emt 00:00:03]} 7. d3 {[%clk 00:18:23]}
{[%emt 00:00:30]} d5 {[%clk 00:17:07]} {[%emt 00:01:36]} 8. cxd5 {[%clk
00:18:25]} {[%emt 00:00:04]} Nxd5 {[%clk 00:17:11]} {[%emt 00:00:01]} 9. Bd2
{[%clk 00:18:23]} {[%emt 00:00:06]} h6 {[%clk 00:13:58]} {[%emt 00:03:18]} 10.
Rc1 {[%clk 00:18:01]} {[%emt 00:00:27]} Be6 {[%clk 00:12:36]} {[%emt 00:01:28]}
11. a3 {[%clk 00:17:34]} {[%emt 00:00:32]} Nd4 {[%clk 00:11:23]} {[%emt
00:01:18]} 12. Nxd4 {[%clk 00:17:05]} {[%emt 00:00:35]} cxd4 {[%clk 00:11:21]}
{[%emt 00:00:07]} 13. Nxd5 {[%clk 00:16:49]} {[%emt 00:00:20]} Bxd5 {[%clk
00:11:23]} {[%emt 00:00:04]} 14. Bxd5 {[%clk 00:16:13]} {[%emt 00:00:40]} Qxd5
{[%clk 00:11:27]} {[%emt 00:00:01]} 15. Bb4 {[%clk 00:16:17]} Qd7 {[%clk
00:10:55]} {[%emt 00:00:38]} 16. Qb3 {[%clk 00:14:38]} {[%emt 00:01:43]} Rfc8
{[%clk 00:10:22]} {[%emt 00:00:38]} 17. a4 {[%clk 00:13:11]} {[%emt 00:01:32]}
Bf6 {[%clk 00:09:51]} {[%emt 00:00:36]} 18. Ba3 {[%clk 00:11:13]} {[%emt
00:02:03]} Rc6 {[%clk 00:08:37]} {[%emt 00:01:20]} 19. Rc4 {[%clk 00:08:43]}
{[%emt 00:02:33]} Rxc4 {[%clk 00:08:25]} {[%emt 00:00:17]} 20. dxc4 {[%clk
00:07:22]} {[%emt 00:01:27]} Rc8 {[%clk 00:07:10]} {[%emt 00:01:21]} 21. c5
{[%clk 00:04:59]} {[%emt 00:02:28]} e5 {[%clk 00:06:16]} {[%emt 00:00:59]} 22.
Rd1 {[%clk 00:03:10]} {[%emt 00:01:53]} e4 {[%clk 00:04:35]} {[%emt 00:01:47]}
23. Qb4 {[%clk 00:01:38]} {[%emt 00:01:38]} Qc6 {[%clk 00:02:18]} {[%emt
00:02:22]} 24. b3 {[%clk 00:01:14]} {[%emt 00:00:28]} Rd8 {[%clk 00:01:50]}
{[%emt 00:00:33]} 25. Qc4 {[%clk 00:00:47]} {[%emt 00:00:31]} Qd5 {[%clk
00:01:31]} {[%emt 00:00:25]} 26. Qxd5 {[%clk 00:00:42]} {[%emt 00:00:10]} Rxd5
{[%clk 00:01:35]} 27. b4 {[%clk 00:00:42]} {[%emt 00:00:05]} d3 {[%clk
00:01:29]} {[%emt 00:00:12]} 28. exd3 {[%clk 00:00:36]} {[%emt 00:00:11]} exd3
{[%clk 00:01:24]} {[%emt 00:00:09]} 29. b5 {[%clk 00:00:22]} {[%emt 00:00:19]}
Be7 {[%clk 00:00:47]} {[%emt 00:00:41]} 30. c6 {[%clk 00:00:12]} {[%emt
00:00:16]} Bxa3 {[%clk 00:00:47]} {[%emt 00:00:05]} 31. cxb7 {[%clk 00:00:11]}
{[%emt 00:00:06]} Bd6 {[%clk 00:00:41]} {[%emt 00:00:10]} 32. Kg2 {[%clk
00:00:10]} {[%emt 00:00:06]} Kf8 {[%clk 00:00:39]} {[%emt 00:00:08]} 33. Kf3
{[%clk 00:00:14]} Bb8 {[%clk 00:00:21]} {[%emt 00:00:23]} 34. a5 {[%clk
00:00:08]} {[%emt 00:00:11]} Rxb5 {[%clk 00:00:16]} {[%emt 00:00:11]} 35. a6
{[%clk 00:00:11]} {[%emt 00:00:01]} Rd5 {[%clk 00:00:14]} {[%emt 00:00:08]} 36.
Ke4 {[%clk 00:00:14]} {[%emt 00:00:01]} Rd6 {[%clk 00:00:17]} {[%emt 00:00:02]}
37. f4 {[%clk 00:00:13]} {[%emt 00:00:06]} Rxa6 {[%clk 00:00:17]} {[%emt
00:00:05]} 38. Rxd3 {[%clk 00:00:17]} Rb6 {[%clk 00:00:07]} {[%emt 00:00:15]}
39. Rd8+ {[%clk 00:00:21]} Ke7 {[%clk 00:00:12]} 40. Rxb8 {[%clk 00:00:26]}
{[%emt 00:00:01]} a5 {[%clk 00:00:14]} {[%emt 00:00:03]} 41. Kd4 {[%clk
00:00:28]} {[%emt 00:00:02]} a4 {[%clk 00:00:15]} {[%emt 00:00:04]} 42. Kc5
{[%clk 00:00:10]} {[%emt 00:00:23]} Rb1 {[%clk 00:00:16]} {[%emt 00:00:04]} 43.
Kc6 {[%clk 00:00:13]} {[%emt 00:00:02]} Rc1+ {[%clk 00:00:12]} {[%emt
00:00:09]} 44. Kb5 {[%clk 00:00:13]} {[%emt 00:00:05]} Rb1+ {[%clk 00:00:11]}
{[%emt 00:00:05]} 45. Kxa4 {[%clk 00:00:17]} {[%emt 00:00:02]} Kd7 {[%clk
00:00:09]} {[%emt 00:00:07]} 46. Ka5 {[%clk 00:00:18]} {[%emt 00:00:04]} Kc7
{[%clk 00:00:11]} {[%emt 00:00:04]} 47. Rf8 {[%clk 00:00:21]} {[%emt 00:00:01]}
Kxb7 {[%clk 00:00:15]} {[%emt 00:00:02]} 48. Rxf7+ {[%clk 00:00:25]} Kc8 {[%clk
00:00:16]} {[%emt 00:00:03]} 49. Rf6 {[%clk 00:00:29]} {[%emt 00:00:01]} Rb2
{[%clk 00:00:13]} {[%emt 00:00:08]} 50. h4 {[%clk 00:00:27]} {[%emt 00:00:07]}
Ra2+ {[%emt 00:00:02]} 51. Kb4 {[%clk 00:00:31]} Rb2+ {[%clk 00:00:19]} {[%emt
00:00:04]} 52. Kc3 {[%clk 00:00:34]} Rb7 {[%clk 00:00:20]} {[%emt 00:00:04]} 53.
Rxg6 {[%clk 00:00:38]} {[%emt 00:00:02]} Rh7 {[%clk 00:00:24]} {[%emt
00:00:01]} 54. Kd4 {[%clk 00:00:41]} Kd7 {[%clk 00:00:28]} 55. Ke5 {[%clk
00:00:46]} Ke7 {[%clk 00:00:32]} 56. Ra6 {[%clk 00:00:49]} 1-0

[Event "MČR juniorů a juniorek v rapid šachu 2023"]
[Site "Czech Republic"]
[Date "2023.09.23"]
[Round "2.4"]
[White "Rybacek, Martin"]
[Black "Ocelak, Jakub"]
[Result "0-1"]
[TimeControl "20 min + 5 sec per move"]
[WhiteFideId "23739266"]
[BlackFideId "23707933"]
[WhiteElo "1755"]
[BlackElo "2025"]

1. d4 {[%clk 00:20:08]} {[%emt 00:00:01]} g6 {[%clk 00:19:54]} {[%emt
00:00:07]} 2. Nf3 {[%clk 00:20:10]} {[%emt 00:00:12]} Bg7 {[%clk 00:19:57]}
{[%emt 00:00:03]} 3. g3 {[%clk 00:20:13]} {[%emt 00:00:02]} d6 {[%clk
00:19:59]} {[%emt 00:00:02]} 4. Bg2 {[%clk 00:20:16]} {[%emt 00:00:03]} Nd7
{[%clk 00:20:02]} {[%emt 00:00:03]} 5. O-O {[%clk 00:20:13]} {[%emt 00:00:08]}
e5 {[%clk 00:20:05]} {[%emt 00:00:02]} 6. dxe5 {[%clk 00:19:16]} {[%emt
00:01:03]} dxe5 {[%clk 00:18:49]} {[%emt 00:01:20]} 7. e4 {[%clk 00:17:45]}
{[%emt 00:01:36]} Ngf6 {[%clk 00:17:39]} {[%emt 00:01:14]} 8. Nc3 {[%clk
00:15:47]} {[%emt 00:02:03]} c6 {[%clk 00:16:56]} {[%emt 00:00:48]} 9. Bg5
{[%clk 00:14:28]} {[%emt 00:01:24]} h6 {[%clk 00:16:18]} {[%emt 00:00:43]} 10.
Be3 {[%clk 00:14:30]} {[%emt 00:00:04]} O-O {[%clk 00:16:13]} {[%emt 00:00:10]}
11. Qe2 {[%clk 00:12:41]} {[%emt 00:01:54]} Qe7 {[%clk 00:15:37]} {[%emt
00:00:41]} 12. h3 {[%clk 00:12:34]} {[%emt 00:00:12]} Qb4 {[%clk 00:13:43]}
{[%emt 00:01:59]} 13. Rab1 {[%clk 00:09:29]} {[%emt 00:03:10]} b6 {[%clk
00:09:58]} {[%emt 00:03:50]} 14. a3 {[%clk 00:09:16]} {[%emt 00:00:18]} Qe7
{[%clk 00:10:02]} 15. Rbd1 {[%clk 00:07:56]} {[%emt 00:01:25]} Bb7 {[%clk
00:08:18]} {[%emt 00:01:49]} 16. Nd2 {[%clk 00:07:22]} {[%emt 00:00:40]} Rfd8
{[%clk 00:07:44]} {[%emt 00:00:38]} 17. Nb3 {[%clk 00:06:28]} {[%emt 00:00:59]}
Nf8 {[%clk 00:06:54]} {[%emt 00:00:54]} 18. a4 {[%clk 00:06:19]} {[%emt
00:00:15]} Ne6 {[%clk 00:06:32]} {[%emt 00:00:26]} 19. a5 {[%clk 00:06:01]}
{[%emt 00:00:24]} Nd7 {[%clk 00:05:11]} {[%emt 00:01:25]} 20. Rd2 {[%clk
00:05:04]} {[%emt 00:01:03]} Ndc5 {[%clk 00:04:40]} {[%emt 00:00:37]} 21. Nxc5
{[%clk 00:04:35]} {[%emt 00:00:33]} Nxc5 {[%clk 00:04:42]} {[%emt 00:00:02]} 22.
Rfd1 {[%clk 00:04:18]} {[%emt 00:00:23]} Qc7 {[%clk 00:04:09]} {[%emt
00:00:38]} 23. Bxc5 {[%clk 00:03:11]} {[%emt 00:01:11]} bxc5 {[%clk 00:04:10]}
{[%emt 00:00:04]} 24. a6 {[%clk 00:02:59]} {[%emt 00:00:18]} Rxd2 {[%clk
00:04:00]} {[%emt 00:00:15]} 25. Rxd2 {[%clk 00:03:02]} {[%emt 00:00:03]} Bc8
{[%clk 00:04:02]} {[%emt 00:00:02]} 26. Qd3 {[%clk 00:02:19]} {[%emt 00:00:48]}
Be6 {[%clk 00:03:46]} {[%emt 00:00:21]} 27. Na4 {[%clk 00:01:42]} {[%emt
00:00:42]} Qa5 {[%clk 00:03:26]} {[%emt 00:00:25]} 28. b3 {[%clk 00:01:20]}
{[%emt 00:00:27]} c4 {[%clk 00:02:55]} {[%emt 00:00:36]} 29. Qd6 {[%clk
00:00:57]} {[%emt 00:00:28]} Bf8 {[%clk 00:02:32]} {[%emt 00:00:28]} 30. Qxc6
{[%clk 00:00:49]} {[%emt 00:00:13]} Rc8 {[%clk 00:02:35]} {[%emt 00:00:02]} 31.
Qb7 {[%clk 00:00:54]} Qxd2 {[%clk 00:02:36]} {[%emt 00:00:03]} 0-1

[Event "MČR juniorů a juniorek v rapid šachu 2023"]
[Site "Czech Republic"]
[Date "2023.09.23"]
[Round "2.5"]
[White "Hlavina, Matous"]
[Black "Husa, Daniel"]
[Result "1-0"]
[TimeControl "20 min + 5 sec per move"]
[WhiteFideId "386650"]
[BlackFideId "393487"]
[WhiteElo "2005"]
[BlackElo "1760"]

1. b3 {[%clk 00:19:56]} {[%emt 00:00:10]} c5 {[%clk 00:19:41]} {[%emt
00:00:32]} 2. Bb2 {[%clk 00:19:57]} {[%emt 00:00:04]} Nc6 {[%clk 00:19:43]}
{[%emt 00:00:03]} 3. e3 {[%clk 00:20:00]} {[%emt 00:00:02]} Nf6 {[%clk
00:19:36]} {[%emt 00:00:12]} 4. Nf3 {[%clk 00:20:01]} {[%emt 00:00:04]} e6
{[%clk 00:19:26]} {[%emt 00:00:16]} 5. d4 {[%clk 00:19:46]} {[%emt 00:00:19]}
d5 {[%clk 00:18:31]} {[%emt 00:01:00]} 6. Bd3 {[%clk 00:19:06]} {[%emt
00:00:45]} Be7 {[%clk 00:17:58]} {[%emt 00:00:38]} 7. O-O {[%clk 00:18:59]}
{[%emt 00:00:12]} O-O {[%clk 00:17:53]} {[%emt 00:00:09]} 8. dxc5 {[%clk
00:19:01]} {[%emt 00:00:04]} Bxc5 {[%clk 00:17:39]} {[%emt 00:00:19]} 9. Nbd2
{[%clk 00:19:04]} {[%emt 00:00:02]} b6 {[%clk 00:16:46]} {[%emt 00:00:59]} 10.
a3 {[%clk 00:18:29]} {[%emt 00:00:40]} a5 {[%clk 00:15:36]} {[%emt 00:01:15]}
11. Ng5 {[%clk 00:17:59]} {[%emt 00:00:34]} d4 {[%clk 00:09:30]} {[%emt
00:06:11]} 12. Qf3 {[%clk 00:14:05]} {[%emt 00:03:59]} Bb7 {[%clk 00:08:29]}
{[%emt 00:01:06]} 13. Rad1 {[%clk 00:08:26]} {[%emt 00:05:44]} Qc7 {[%clk
00:06:15]} {[%emt 00:02:20]} 14. Nde4 {[%clk 00:07:30]} {[%emt 00:01:00]} Nxe4
{[%clk 00:03:42]} {[%emt 00:02:37]} 15. Qxe4 {[%clk 00:07:03]} {[%emt
00:00:33]} g6 {[%clk 00:03:20]} {[%emt 00:00:27]} 16. Qh4 {[%clk 00:06:47]}
{[%emt 00:00:20]} h5 {[%clk 00:03:13]} {[%emt 00:00:12]} 17. exd4 {[%clk
00:06:25]} {[%emt 00:00:28]} Be7 {[%clk 00:02:41]} {[%emt 00:00:36]} 18. d5
{[%clk 00:05:36]} {[%emt 00:00:55]} exd5 {[%clk 00:02:05]} {[%emt 00:00:42]} 19.
Qxh5 {[%clk 00:05:24]} {[%emt 00:00:15]} gxh5 {[%clk 00:01:35]} {[%emt
00:00:35]} 20. Bh7# {[%emt 00:00:02]} 1-0